bitfinex/quotes_ETHUSD_20260131
["timestamp","ask_amount","ask_price","bid_price","bid_amount"]
[1769901734639,0.01657584,2455.1,2453.5,1.01895251]
[1769901734947,0.01657584,2455.5,2453.5,1.01895251]
[1769901734948,0.87157584,2456.0,2453.6,0.01657584]
[1769901735244,0.87157584,2456.0,2453.6,0.51444901]
[1769901735245,0.01657584,2455.4,2453.6,0.51444901]
[1769901735445,0.87157584,2456.0,2453.6,0.51444901]
[1769901735446,0.01657584,2456.7,2454.3,0.01657584]
[1769901735662,0.01657584,2456.7,2454.3,1.01862038]
[1769901735663,0.01657584,2456.2,2454.3,1.01862038]
[1769901735874,0.01657584,2456.2,2453.9,0.01657584]
[1769901735875,0.01657584,2456.2,2453.6,0.51444901]
[1769901735876,0.01657584,2455.1,2453.6,0.51444901]
[1769901736157,0.01657584,2455.4,2454.0,1.01873901]
[1769901736340,0.01657584,2455.4,2453.4,4.07591195]
[1769901736524,0.854,2455.6,2454.2,1.01863329]
[1769901736849,14.78501449,2455.7,2454.2,1.01865679]
[1769901737043,0.01657584,2455.4,2453.5,0.40924878]
[1769901737241,0.01657584,2455.4,2452.2,4.09450663]
[1769901737242,0.01657584,2455.4,2453.9,1.01878579]
[1769901737444,0.01657584,2455.4,2454.0,1.01874116]
[1769901737640,1.03476364,2455.4,2453.5,4.07575552]
[1769901737845,0.01657584,2454.9,2452.6,4.58854638]
[1769901738042,0.01657584,2454.8,2453.3,1.01903117]
[1769901738230,0.01657584,2454.8,2453.3,1.01903129]
[1769901738432,0.854,2454.9,2453.3,1.01903129]
[1769901738748,1.39641662,2454.9,2453.3,1.01903129]
[1769901739058,1.39641662,2454.9,2452.3,4.09425795]
[1769901739059,13.94759033,2454.5,2451.8,0.01657584]
[1769901739223,13.93101449,2454.3,2452.3,4.094292]
[1769901739554,0.01657584,2454.8,2452.7,4.07702504]
[1769901739555,1.39310145,2454.2,2452.7,4.07702504]
[1769901739724,1.01860626,2454.4,2452.6,1.01932642]
[1769901740120,0.01657584,2454.7,2452.6,1.01932642]
[1769901740121,1.03508513,2454.6,2452.6,1.01932642]
[1769901740354,18.02098411,2455.0,2452.7,0.01657584]
[1769901740355,0.854,2455.0,2452.7,0.01657584]
[1769901740521,13.93101449,2454.7,2452.7,0.50966321]
[1769901740727,0.01657584,2454.2,2452.6,1.01932642]
[1769901740977,0.01657584,2454.1,2452.6,1.01932642]
[1769901741378,0.01657584,2453.8,2452.1,1.01950702]
[1769901741532,1.01878642,2453.9,2452.3,1.01945112]
[1769901742151,0.01657584,2453.8,2452.3,1.01945112]
[1769901742352,13.94759033,2453.7,2452.2,1.01948767]
[1769901742556,1.90580983,2453.8,2452.2,1.01948767]
[1769901742855,0.01657584,2453.9,2452.2,1.01948767]
[1769901743227,1.46877361,2454.0,2452.2,1.01948767]
[1769901743432,0.01657584,2453.8,2452.2,1.01948767]
[1769901743654,2.48752904,2454.0,2452.4,1.01940955]
[1769901743954,0.01657584,2453.9,2452.4,1.01940955]
[1769901744156,0.01657584,2453.8,2452.4,1.01940955]
[1769901744454,2.50410488,2454.0,2452.4,1.03598539]
[1769901744455,1.46877361,2454.0,2452.4,1.03598539]
[1769901744654,1.46877361,2454.0,2452.5,0.51136236]
[1769901744861,1.46877361,2454.0,2452.5,0.5279382]
[1769901745159,1.46877361,2454.0,2452.7,0.01657584]
[1769901745361,2.48754356,2454.0,2452.5,0.51136236]
[1769901745563,0.65625232,2453.9,2452.4,1.03598539]
[1769901745861,1.46877361,2454.0,2452.4,1.03598539]
[1769901746028,1.46877361,2454.0,2452.6,0.01657584]
[1769901746457,1.46877361,2454.0,2453.0,0.01657584]
[1769901746829,1.46877361,2454.0,2452.7,0.01657584]
[1769901747257,1.46877361,2454.0,2452.0,17.82505072]
[1769901747458,1.46877361,2454.0,2452.5,0.53136337]
[1769901747673,4.07216246,2455.7,2452.5,0.53136337]
[1769901747674,13.93101449,2455.3,2453.1,0.01657584]
[1769901747827,2.49826969,2455.6,2453.5,0.01657584]
[1769901748036,1.0346865,2455.6,2453.5,0.01657584]
[1769901748665,0.01657584,2455.6,2453.5,0.01657584]
[1769901748871,0.01657584,2455.8,2453.5,0.01657584]
[1769901748872,0.01657584,2455.8,2453.7,0.01657584]
[1769901749173,0.01657584,2455.7,2453.7,0.01657584]
[1769901749470,0.01657584,2455.7,2453.3,1.03733515]
[1769901749471,0.01657584,2455.3,2453.3,1.03733515]
[1769901749683,0.01657584,2455.3,2453.3,1.01903558]
[1769901749684,0.01657584,2454.8,2453.3,1.01903558]
[1769901749863,0.01657584,2454.7,2453.3,1.01903558]
[1769901750058,0.01657584,2454.5,2453.2,1.01906217]
[1769901750261,14.78501449,2454.7,2453.2,1.01906217]
[1769901750466,1.48015903,2454.6,2453.2,1.01906217]
[1769901750664,1.48015903,2454.6,2453.0,4.07630849]
[1769901750665,0.01657584,2453.3,2452.4,0.0011]
[1769901750864,0.01657584,2453.3,2451.2,0.0011]
[1769901750865,0.01657584,2452.5,2451.2,0.0011]
[1769901751054,0.01657584,2452.9,2452.0,4.07818279]
[1769901751267,0.01657584,2452.4,2451.8,1.01963415]
[1769901751453,0.01657584,2452.2,2451.3,1.53487115]
[1769901751658,0.01657584,2452.2,2451.4,1.0198254]
[1769901751855,0.01657584,2453.6,2451.4,1.5813552]
[1769901752056,1.03555238,2453.5,2451.5,0.83703923]
[1769901752279,0.01657584,2453.0,2451.6,0.83703923]
[1769901752482,1.03557368,2453.4,2451.4,1.5813552]
[1769901752646,0.01657584,2453.1,2451.5,1.50679049]
[1769901752854,13.94759033,2453.9,2451.7,1.03733515]
[1769901753150,0.01657584,2453.5,2451.8,1.87432393]
[1769901753377,0.01657584,2453.4,2451.9,1.87432393]
[1769901753648,0.01657584,2453.2,2452.1,1.01953427]
[1769901753871,0.01657584,2453.1,2452.1,1.61300028]
[1769901754049,0.01657584,2453.1,2452.1,1.01953427]
[1769901754050,0.01657584,2452.9,2452.1,1.01953427]
[1769901754244,0.01657584,2453.0,2452.1,1.01953427]
[1769901754449,0.01657584,2452.5,2451.7,1.01967313]
[1769901754676,0.01657584,2452.5,2451.8,1.01965608]
[1769901754864,0.01657584,2452.5,2451.3,4.07935578]
[1769901754865,0.01657584,2452.2,2451.3,4.07935578]
[1769901755066,0.01657584,2452.2,2451.2,0.0011]
[1769901755067,0.01657584,2452.1,2451.2,4.08056835]
[1769901755253,0.01657584,2452.2,2451.2,1.02098853]
[1769901755454,0.01657584,2452.0,2451.2,1.02098853]
[1769901755781,0.01657584,2452.3,2451.2,0.5111623]
[1769901755967,0.01657584,2451.9,2451.2,0.0011]
[1769901756175,0.01657584,2452.0,2451.2,0.0011]
[1769901756555,0.01657584,2451.6,2451.2,0.0011]
[1769901756789,0.01657584,2451.3,2450.6,1.02012501]
[1769901756978,0.01657584,2451.4,2450.6,1.02012501]
[1769901757187,0.01657584,2451.7,2450.6,1.02012501]
[1769901757396,13.7241514,2452.9,2450.8,1.03733515]
[1769901757566,0.01657584,2452.1,2450.9,0.84464886]
[1769901757770,0.01657584,2452.1,2451.0,1.01999184]
[1769901757966,1.03595936,2452.5,2451.0,1.01999184]
[1769901758178,0.01657584,2453.0,2451.2,1.03733515]
[1769901758179,1.01917129,2453.0,2451.2,1.03733515]
[1769901758501,1.01917129,2453.0,2451.3,0.84437801]
[1769901758502,0.01657584,2452.8,2451.3,0.84437801]
[1769901758703,0.01657584,2453.3,2451.7,1.03733515]
[1769901758704,1.03563878,2453.3,2451.7,1.03733515]
[1769901759000,1.03563878,2453.3,2451.5,1.38311354]
[1769901759001,0.87157584,2453.2,2451.8,0.84376771]
[1769901759182,0.87157584,2453.2,2451.5,1.03733515]
[1769901759183,0.01657584,2452.8,2451.5,1.03733515]
[1769901759383,0.01657584,2452.8,2451.6,1.88081402]
[1769901759592,0.01657584,2452.9,2451.6,1.88081402]
[1769901759797,0.01657584,2452.9,2451.3,1.03733515]
[1769901759798,0.01657584,2451.9,2451.3,1.03733515]
[1769901760005,0.01657584,2451.9,2451.2,0.0011]
[1769901760181,0.01657584,2451.3,2450.4,1.02022291]
[1769901760497,0.01657584,2451.7,2450.4,1.22597872]
[1769901760689,0.01657584,2451.5,2450.4,1.02022291]
[1769901760900,0.01657584,2451.5,2450.1,1.0550214]
[1769901760901,0.01657584,2451.2,2450.1,1.02036139]
[1769901761081,0.01657584,2451.1,2450.2,1.02031414]
[1769901761276,0.01657584,2451.1,2450.0,0.0011]
[1769901761277,0.01657584,2450.7,2450.0,0.0011]
[1769901761904,0.01657584,2450.7,2449.4,1.02065812]
[1769901762074,0.01657584,2450.6,2449.4,1.02065812]
[1769901762274,0.01657584,2450.6,2449.5,0.51032906]
[1769901762578,0.01657584,2450.8,2449.5,0.51032906]
[1769901762771,17.71029024,2451.2,2449.5,0.51032906]
[1769901762772,0.01657584,2451.4,2449.5,0.51032906]
[1769901762974,0.01657584,2451.4,2449.7,1.0550214]
[1769901763174,0.01657584,2451.5,2449.8,1.29883489]
[1769901763408,0.01657584,2451.4,2449.7,1.0550214]
[1769901763776,0.01657584,2451.5,2449.9,1.02044981]
[1769901763995,13.71646818,2452.6,2450.0,13.13655577]
[1769901764280,13.71646818,2452.6,2450.8,0.01657584]
[1769901764281,1.01933297,2452.6,2450.8,0.01657584]
[1769901764602,1.01933297,2452.6,2450.5,0.01657584]
[1769901764603,0.01657584,2451.9,2450.5,1.0550214]
[1769901764783,0.01657584,2452.0,2450.4,1.0550214]
[1769901764971,0.01657584,2452.0,2450.5,1.0550214]
[1769901765172,0.01657584,2452.0,2450.3,1.38311354]
[1769901765173,0.01657584,2452.0,2450.4,1.0550214]
[1769901765775,0.01657584,2452.0,2450.5,1.02019995]
[1769901765976,1.03611383,2452.1,2450.5,1.02019995]
[1769901766274,1.01953799,2452.1,2450.4,1.02021487]
[1769901766599,1.01953799,2452.1,2450.5,0.51012319]
[1769901766600,0.01657584,2451.8,2450.5,0.51012319]
[1769901767490,0.01657584,2451.7,2450.5,0.51012319]
[1769901767992,1.03631804,2451.6,2450.5,1.0201842]
[1769901768706,0.01657584,2451.3,2449.7,1.0550214]
[1769901768880,1.03631804,2451.6,2449.9,4.08176315]
[1769901769091,0.87157584,2451.5,2450.3,1.02025523]
[1769901769471,0.01657584,2451.4,2450.1,1.0203397]
[1769901769674,0.87157584,2451.5,2450.2,1.02031626]
[1769901769896,1.0198254,2451.4,2449.8,1.02049146]
[1769901770093,1.0198254,2451.4,2449.9,0.51024916]
[1769901770481,1.03633193,2451.6,2449.9,0.51024916]
[1769901770684,1.87475609,2451.6,2449.9,0.51024916]
[1769901770874,1.9584329,2451.5,2450.0,0.2585762]
[1769901771310,0.01657584,2451.4,2450.0,0.2585762]
[1769901771478,1.9584329,2451.5,2450.0,0.2585762]
[1769901771680,2.8134329,2451.5,2450.0,0.2585762]
[1769901771891,0.38497648,2451.4,2450.1,0.84326078]
[1769901772092,1.40483121,2451.4,2450.1,1.02036651]
[1769901772405,1.40483121,2451.4,2450.4,0.0011]
[1769901772811,0.01657584,2451.0,2449.8,1.0550214]
[1769901773003,0.01657584,2450.9,2450.1,0.0011]
[1769901773213,13.61406818,2451.0,2450.1,0.0011]
[1769901774213,0.84631662,2451.3,2450.1,0.0011]
[1769901774214,1.01990861,2451.2,2450.1,0.0011]
[1769901774411,0.61116181,2451.1,2450.1,0.0011]
[1769901775987,13.63064402,2452.1,2450.1,0.0011]
[1769901776187,14.63360705,2452.1,2450.2,1.91449684]
[1769901776394,15.48860705,2452.1,2450.3,1.897921]
[1769901776595,1.56543655,2452.0,2450.4,1.17266064]
[1769901776828,1.54886071,2452.0,2450.5,0.8428996]
[1769901777128,4.09471294,2452.2,2450.5,0.8428996]
[1769901777129,0.001,2452.7,2451.7,0.01657584]
[1769901777333,5.001,2452.7,2451.8,0.84212483]
[1769901777496,5.001,2452.7,2451.4,1.0533085]
[1769901777988,5.001,2452.7,2451.5,0.84270909]
[1769901778196,1.01932642,2452.6,2451.4,0.22589743]
[1769901778406,5.001,2452.7,2451.5,1.86402815]
[1769901778639,5.001,2452.7,2451.6,0.84426657]
[1769901778803,5.001,2452.7,2451.7,0.84426657]
[1769901779002,6.62230806,2452.7,2451.5,1.01976158]
[1769901779333,6.62230806,2452.7,2451.6,0.84417626]
[1769901779627,5.6030224,2452.7,2451.7,0.84417626]
[1769901779817,5.6030224,2452.7,2451.8,0.84417626]
[1769901780022,5.6030224,2452.7,2451.5,1.01976158]
[1769901780327,5.6030224,2452.7,2451.7,1.0533085]
[1769901780328,0.001,2452.7,2451.7,1.0533085]
[1769901780495,0.001,2452.7,2452.1,1.0533085]
[1769901780699,0.001,2452.7,2452.2,0.84584745]
[1769901780901,0.001,2452.7,2452.3,0.84584745]
[1769901781199,1.01897394,2453.5,2452.4,0.84584745]
[1769901781200,10.34,2453.5,2452.4,0.84584745]
[1769901781405,5.0,2453.4,2452.5,0.84584745]
[1769901781604,8.3427201,2453.7,2452.6,0.84584745]
[1769901781930,5.0,2453.7,2452.7,0.84510937]
[1769901782101,14.63260936,2454.5,2453.0,1.0533085]
[1769901782303,0.01657584,2454.0,2452.6,1.0533085]
[1769901782629,1.38295541,2454.0,2452.7,0.84426765]
[1769901782803,1.38295541,2454.0,2452.8,0.84426765]
[1769901783129,1.38295541,2454.0,2452.5,4.0774144]
[1769901783130,1.38295541,2454.0,2452.4,1.0533085]
[1769901783131,0.01657584,2453.3,2452.4,1.0533085]
[1769901783335,0.01657584,2453.3,2451.7,2.77222787]
[1769901783336,0.01657584,2452.9,2451.9,1.0533085]
[1769901783501,0.01657584,2452.9,2450.9,1.0533085]
[1769901783502,0.01657584,2452.0,2450.9,1.0533085]
[1769901783697,0.01657584,2452.0,2450.4,0.32976104]
[1769901783698,1.01854118,2454.5,2452.1,0.01657584]
[1769901783902,1.01854118,2454.5,2452.9,0.01657584]
[1769901783903,14.63260936,2454.5,2452.9,0.01657584]
[1769901784102,14.6491852,2454.5,2452.6,1.0533085]
[1769901784348,0.01657584,2453.9,2452.3,1.01942028]
[1769901784532,13.63064402,2453.9,2452.1,1.0533085]
[1769901784831,1.36472199,2453.8,2452.7,1.01928295]
[1769901785002,1.36472199,2453.8,2452.2,1.2969507]
[1769901785205,1.36472199,2453.8,2452.4,1.01940481]
[1769901785511,0.001,2453.7,2452.2,1.0533085]
[1769901785722,0.001,2453.7,2452.8,1.01922994]
[1769901785922,0.001,2453.7,2452.7,1.01926544]
[1769901786114,1.49897902,2453.7,2452.4,4.07762197]
[1769901786313,0.001,2453.7,2452.4,4.07762197]
[1769901786512,13.61406818,2454.6,2452.9,0.01657584]
[1769901786710,13.61406818,2454.6,2453.0,0.01657584]
[1769901786945,0.855,2454.7,2453.5,0.01657584]
[1769901787242,0.27250897,2455.4,2454.2,0.01657584]
[1769901787641,0.855,2455.9,2454.4,0.01657584]
[1769901787940,0.55498211,2456.9,2454.6,0.01657584]
[1769901788148,3.17165583,2456.8,2455.2,1.01824698]
[1769901788349,13.65981621,2456.4,2454.7,1.01842031]
[1769901788513,0.01657584,2456.3,2454.9,1.01836396]
[1769901788717,0.01657584,2456.3,2454.9,1.01836889]
[1769901788914,1.36929679,2456.3,2455.1,1.01827227]
[1769901789118,1.36929679,2456.3,2455.1,1.01828722]
[1769901789535,0.31716558,2456.7,2455.1,1.03486306]
[1769901789745,14.49824037,2457.1,2455.1,1.03486306]
[1769901789746,14.66072086,2457.1,2455.1,1.03486306]
[1769901789947,1.01731295,2457.5,2455.7,0.01657584]
[1769901790245,0.01657584,2458.2,2455.9,12.77269638]
[1769901790423,13.65981621,2458.6,2456.6,0.01657584]
[1769901790424,4.06753798,2458.5,2456.6,0.01657584]
[1769901790623,4.06753798,2458.5,2456.0,1.38072704]
[1769901790624,0.01657584,2458.2,2456.0,1.38072704]
[1769901790826,0.01657584,2458.0,2456.1,1.41534234]
[1769901791024,14.19822248,2458.4,2456.1,1.41534234]
[1769901791025,4.06753798,2458.5,2456.1,1.41534234]
[1769901791215,1.01688021,2458.5,2456.6,0.01657584]
[1769901791413,1.01688021,2458.5,2456.7,0.01657584]
[1769901791615,0.0845412,2459.9,2458.1,0.01657584]
[1769901791822,0.01657584,2462.6,2460.1,0.01657584]
[1769901792038,0.01657584,2462.8,2460.0,0.01657584]
[1769901792039,1.03118622,2464.0,2461.0,8.90390736]
[1769901792240,0.01657584,2463.7,2461.2,1.24933496]
[1769901792450,0.01657584,2463.7,2461.1,4.95344941]
[1769901792451,14.01657584,2464.4,2461.1,4.95344941]
[1769901792452,0.01657584,2461.3,2461.1,1.90618967]
[1769901792626,0.20040872,2462.7,2461.2,2.02561184]
[1769901792832,1.01440421,2464.6,2461.2,0.2335703]
[1769901792833,0.01657584,2463.0,2461.2,0.2335703]
[1769901793020,0.01657584,2463.6,2461.2,0.2335703]
[1769901793021,13.64324037,2463.5,2462.1,0.01657584]
[1769901793349,13.64324037,2463.5,2462.0,0.01657584]
[1769901793350,0.854,2463.4,2462.0,0.01657584]
[1769901793671,1.01440454,2464.5,2462.5,0.01657584]
[1769901793672,14.18317276,2463.7,2462.5,0.01657584]
[1769901793876,0.40440629,2464.4,2461.5,0.01657584]
[1769901793877,13.64324037,2463.3,2461.5,0.01657584]
[1769901794035,13.64324037,2463.1,2461.2,0.25014614]
[1769901794376,0.01657584,2461.2,2459.6,4.43852355]
[1769901794570,0.01657584,2461.2,2458.6,0.01657584]
[1769901794571,0.01657584,2461.2,2459.7,0.44385236]
[1769901794572,13.64324037,2461.2,2459.7,0.44385236]
[1769901794733,13.65981621,2462.0,2459.8,0.01657584]
[1769901794943,1.01991205,2461.5,2460.3,0.01657584]
[1769901795239,1.46963041,2461.9,2460.2,0.01657584]
[1769901795240,0.854,2461.8,2460.2,0.01657584]
[1769901795440,1.97362571,2461.8,2460.3,0.01657584]
[1769901795641,1.11962571,2461.8,2460.4,0.01657584]
[1769901795824,13.64324037,2461.6,2459.5,0.01657584]
[1769901796020,0.854,2461.7,2458.6,0.01657584]
[1769901796021,13.64324037,2460.8,2458.6,0.01657584]
[1769901796223,13.65981621,2460.4,2457.8,1.03372962]
[1769901796460,13.65981621,2460.4,2457.7,0.01657584]
[1769901796461,13.64324037,2459.9,2457.7,0.01657584]
[1769901796624,13.64324037,2459.9,2457.2,0.01657584]
[1769901796625,13.65981621,2459.5,2457.2,0.01657584]
[1769901796948,0.853,2459.7,2458.3,0.01657584]
[1769901797158,0.01657584,2459.0,2456.9,4.07011428]
[1769901797458,0.853,2459.7,2457.3,0.01657584]
[1769901797750,0.01657584,2459.4,2457.3,0.01657584]
[1769901797933,0.01657584,2459.8,2457.9,1.01710948]
[1769901798143,0.11897584,2459.9,2458.0,0.01657584]
[1769901798144,0.853,2459.3,2458.0,0.01657584]
[1769901798328,0.01657584,2460.4,2457.8,0.01657584]
[1769901798329,1.36598162,2460.7,2458.8,0.01657584]
[1769901798533,1.44972404,2461.5,2458.6,0.01657584]
[1769901798534,16.10862011,2461.5,2458.6,0.01657584]
[1769901798733,0.01657584,2460.5,2458.1,12.75612054]
[1769901798933,0.01657584,2460.9,2458.1,12.75612054]
[1769901798934,13.64324037,2461.2,2459.2,0.01657584]
[1769901799154,13.64324037,2461.2,2458.9,0.01657584]
[1769901799155,0.01657584,2460.8,2458.2,0.01657584]
[1769901799339,0.853,2460.7,2459.0,0.01657584]
[1769901799532,0.853,2460.7,2458.7,0.01657584]
[1769901799533,0.853,2460.7,2458.2,0.01657584]
[1769901799848,0.01657584,2460.6,2458.2,0.01657584]
[1769901800160,0.853,2460.8,2458.9,0.01657584]
[1769901800373,0.01657584,2460.9,2459.0,1.01667344]
[1769901800671,1.09228669,2460.9,2459.2,0.01657584]
[1769901800954,1.36432404,2461.1,2459.6,0.01657584]
[1769901801156,0.001,2461.6,2459.6,0.01657584]
[1769901801157,0.001,2461.6,2460.4,0.01657584]
[1769901801356,13.64324037,2462.8,2460.9,0.01657584]
[1769901801528,4.07570429,2463.6,2462.0,0.01657584]
[1769901801529,13.64324037,2463.6,2462.0,0.01657584]
[1769901801729,13.64324037,2463.6,2461.6,0.01657584]
[1769901801730,1.03131269,2463.7,2460.5,0.25014614]
[1769901801953,0.21210725,2463.5,2461.8,0.01657584]
[1769901802252,0.21210725,2463.5,2461.7,1.03213419]
[1769901802454,0.21210725,2463.5,2460.7,0.01657584]
[1769901802455,0.01657584,2463.3,2460.7,0.01657584]
[1769901802661,0.01657584,2463.4,2461.6,1.01556031]
[1769901802662,0.99539121,2463.4,2461.6,1.01556031]
[1769901802861,1.01463956,2464.0,2461.9,0.01657584]
[1769901803026,1.03102154,2464.4,2462.2,0.01657584]
[1769901803366,0.01657584,2464.7,2462.2,0.01657584]
[1769901803367,0.01657584,2466.4,2463.6,0.01657584]
[1769901803538,1.01349981,2466.7,2464.3,0.01657584]
[1769901803859,1.01349981,2466.7,2463.1,0.01657584]
[1769901803860,0.01657584,2465.7,2463.1,0.01657584]
[1769901804059,0.853,2466.0,2464.3,0.01657584]
[1769901804360,0.853,2466.0,2463.9,0.01657584]
[1769901804361,0.853,2466.0,2462.2,0.01657584]
[1769901804362,0.01657584,2464.7,2462.2,0.01657584]
[1769901804655,0.01657584,2464.7,2462.0,0.01657584]
[1769901804656,0.01657584,2464.7,2462.1,0.01657584]
[1769901804873,0.01657584,2464.7,2461.8,0.01657584]
[1769901804874,0.01657584,2464.0,2461.9,0.01657584]
[1769901805026,0.01657584,2464.1,2461.9,0.01657584]
[1769901805027,0.01657584,2464.1,2462.2,4.06130668]
[1769901805230,14.65690456,2466.4,2463.9,0.01657584]
[1769901805458,14.65690456,2466.4,2463.5,0.01657584]
[1769901805459,0.01657584,2465.7,2463.0,4.29316515]
[1769901805674,1.01366419,2466.3,2464.1,0.01657584]
[1769901805838,1.95801998,2466.2,2464.4,0.01657584]
[1769901806038,1.95801998,2466.2,2464.0,0.01657584]
[1769901806039,0.01657584,2465.2,2463.1,1.01497601]
[1769901806246,1.01415764,2465.1,2463.1,1.0315525]
[1769901806441,1.87306044,2465.0,2463.3,0.01657584]
[1769901806653,13.64324037,2464.7,2463.0,0.01657584]
[1769901806831,13.64324037,2464.7,2463.3,0.01657584]
[1769901806832,1.36432404,2464.6,2463.3,0.01657584]
[1769901807028,13.64324037,2464.4,2461.5,0.01657584]
[1769901807334,0.11897584,2464.5,2461.5,0.01657584]
[1769901807335,13.64324037,2464.3,2462.2,0.01657584]
[1769901807535,0.852,2464.2,2462.4,1.03182523]
[1769901807751,0.852,2464.2,2462.3,0.01657584]
[1769901808062,0.852,2464.1,2462.5,0.01657584]
[1769901808276,1.01461038,2464.0,2462.3,1.03186378]
[1769901808577,2.51650271,2464.2,2462.6,0.01657584]
[1769901808781,0.852,2463.9,2462.7,0.01657584]
[1769901808943,2.02178552,2464.1,2462.3,1.03186608]
[1769901809138,14.51181621,2464.0,2461.6,1.01557237]
[1769901809374,14.51181621,2464.0,2461.5,0.01657584]
[1769901809375,13.64324037,2463.3,2461.2,1.03231419]
[1769901809569,13.64324037,2463.3,2460.8,0.01657584]
[1769901809570,0.01657584,2463.4,2460.9,4.08012507]
[1769901809571,13.65981621,2463.1,2460.9,4.08012507]
[1769901809774,15.86287958,2463.0,2460.9,0.01657584]
[1769901810070,15.86287958,2463.0,2460.5,0.01657584]
[1769901810071,13.64324037,2462.5,2460.5,0.01657584]
[1769901810255,1.01526965,2462.4,2460.5,1.01605364]
[1769901810566,1.01526965,2462.4,2460.5,1.03262948]
[1769901810567,1.87195886,2462.3,2460.5,1.03262948]
[1769901810772,1.8885347,2462.3,2460.4,1.01608738]
[1769901810975,14.65850232,2462.5,2460.6,0.01657584]
[1769901811583,14.65850232,2462.5,2460.7,0.01657584]
[1769901811799,2.38268281,2463.0,2461.3,0.01657584]
[1769901811968,2.38268281,2463.0,2461.4,0.01657584]
[1769901811969,0.852,2462.9,2461.4,0.01657584]
[1769901812299,1.86708752,2462.9,2461.3,1.03229923]
[1769901812575,0.852,2462.9,2461.4,0.01657584]
[1769901812779,1.86707055,2462.9,2461.4,0.52941029]
[1769901812945,1.01473393,2463.7,2461.9,0.01657584]
[1769901813148,1.86673393,2463.7,2461.4,0.51283445]
[1769901813346,0.59256697,2463.6,2461.8,0.01657584]
[1769901813545,0.59256697,2463.6,2461.7,0.01657584]
[1769901813746,4.07551158,2463.9,2461.7,0.01657584]
[1769901813747,0.01657584,2464.1,2461.9,0.01657584]
[1769901813978,1.01547067,2464.4,2463.4,0.01657584]
[1769901814146,1.01547067,2464.4,2463.2,0.01657584]
[1769901814147,1.52277486,2464.4,2463.2,0.01657584]
[1769901814351,14.65869338,2464.4,2462.4,0.01657584]
[1769901814550,0.23747749,2464.3,2462.6,0.01657584]
[1769901814751,0.23747749,2464.3,2463.1,1.03153754]
[1769901814752,0.852,2464.2,2463.1,1.03153754]
[1769901814951,0.852,2464.2,2463.0,4.07654729]
[1769901814952,0.852,2464.2,2462.5,1.03178003]
[1769901815157,0.23747749,2464.3,2462.6,4.06071513]
[1769901815376,0.23747749,2464.3,2462.3,0.01657584]
[1769901815377,0.852,2464.2,2462.2,4.0613979]
[1769901815577,0.23747749,2464.3,2462.4,0.01657584]
[1769901815777,0.852,2464.2,2462.1,0.01657584]
[1769901815979,0.852,2464.2,2462.1,1.03194624]
[1769901815980,14.51181621,2464.2,2462.1,1.03194624]
[1769901816277,15.13640316,2464.1,2462.1,1.01536742]
[1769901816479,1.86661038,2464.0,2462.4,0.01657584]
[1769901816681,1.47658695,2464.1,2462.1,0.01657584]
[1769901816906,0.01657584,2463.3,2461.1,4.06319109]
[1769901817194,0.01657584,2463.3,2460.9,0.01657584]
[1769901817195,0.01657584,2463.0,2461.2,0.40797669]
[1769901817351,0.01657584,2463.0,2461.7,1.01555813]
[1769901817550,0.01657584,2462.9,2461.5,1.01561572]
[1769901817776,0.01657584,2462.5,2461.6,1.01557241]
[1769901817960,0.01657584,2462.8,2461.6,1.01557324]
[1769901818158,0.01657584,2462.8,2460.7,0.01657584]
[1769901818159,0.01657584,2462.3,2460.5,4.06416076]
[1769901818370,0.01657584,2462.5,2460.5,4.06416076]
[1769901818371,0.01657584,2462.5,2460.9,4.0634911]
[1769901818597,4.07675679,2463.0,2460.9,4.0634911]
[1769901818598,0.01657584,2463.8,2461.1,13.63217931]
[1769901818769,0.01657584,2464.0,2461.1,13.63217931]
[1769901818770,0.01657584,2464.0,2462.5,0.01657584]
[1769901818970,0.01757584,2464.4,2462.5,0.01657584]
[1769901818971,0.001,2464.4,2462.5,0.1024]
[1769901819184,0.06730336,2464.4,2462.6,0.82175595]
[1769901819383,0.001,2464.4,2462.7,0.83815349]
[1769901819663,0.06630336,2464.4,2462.5,1.82419669]
[1769901819877,0.01657584,2463.9,2462.5,1.39718427]
[1769901820083,0.01657584,2464.3,2461.7,13.735836]
[1769901820398,12.96781672,2467.4,2465.0,1.03077462]
[1769901820583,17.8721587,2467.3,2465.3,0.01657584]
[1769901820783,12.98439256,2467.0,2464.2,4.058075]
[1769901820984,12.96781672,2466.8,2465.0,1.01419878]
[1769901821188,0.01657584,2467.2,2465.0,1.01419878]
[1769901821190,0.01657584,2468.9,2466.3,0.01657584]
[1769901821503,0.01657584,2469.5,2466.3,0.01657584]
[1769901821504,1.09681444,2469.7,2467.0,1.23626731]
[1769901821663,1.0101117,2469.6,2467.1,0.82018486]
[1769901822018,1.0101117,2469.6,2466.6,0.1024]
[1769901822019,13.11692628,2469.1,2466.1,1.01927285]
[1769901822185,1.0101117,2469.6,2466.4,0.2335703]
[1769901822388,1.0101117,2469.6,2467.9,0.01215387]
[1769901822389,13.11692628,2469.4,2467.9,0.01215387]
[1769901822590,1.01235067,2469.5,2468.5,0.01215387]
[1769901822765,1.01235067,2469.5,2468.4,0.01215387]
[1769901822766,1.01235067,2469.5,2467.2,0.01215387]
[1769901822966,1.01235067,2469.5,2467.0,0.01215387]
[1769901822967,13.11692628,2469.2,2467.0,0.01215387]
[1769901823166,13.11692628,2469.2,2466.6,0.01215387]
[1769901823167,0.61934038,2469.4,2465.4,0.01215509]
[1769901823168,0.01215509,2467.6,2465.4,0.01215509]
[1769901823396,0.01215509,2467.6,2464.8,5.0718512]
[1769901823397,0.01215509,2467.1,2464.7,0.01215509]
[1769901823593,13.11692628,2467.0,2464.8,0.01215509]
[1769901823797,1.39800814,2466.9,2465.0,0.01215509]
[1769901823995,1.39800814,2466.9,2464.9,0.01215509]
[1769901824224,1.39800814,2466.9,2465.6,0.01216594]
[1769901824521,1.01345873,2466.8,2465.6,0.01216594]
[1769901824821,0.64653018,2466.7,2465.5,0.01216594]
[1769901825012,1.01317122,2467.5,2466.6,0.01216594]
[1769901825329,1.01317122,2467.5,2466.0,0.01216594]
[1769901825532,13.12909222,2467.2,2465.0,1.01418226]
[1769901825747,13.11692628,2467.2,2465.8,0.01216594]
[1769901825947,4.0526849,2467.7,2465.8,0.01216594]
[1769901825948,1.01263771,2468.8,2466.5,0.01216594]
[1769901826241,5.38586482,2469.1,2466.5,0.01216594]
[1769901826242,14.12952298,2469.0,2467.3,0.01216594]
[1769901826439,13.11692628,2468.8,2467.4,0.01216594]
[1769901826616,0.01216594,2468.4,2466.6,1.01351591]
[1769901826814,0.01216594,2468.4,2466.2,0.01216594]
[1769901827026,0.851,2468.3,2466.8,0.01216594]
[1769901827227,14.833674,2468.7,2466.8,0.01216594]
[1769901827228,1.48580059,2468.6,2467.5,1.01316544]
[1769901827508,1.48580059,2468.6,2466.8,0.01216594]
[1769901827509,1.48580059,2468.6,2466.1,0.01216594]
[1769901827510,0.01216594,2468.5,2466.1,0.01216594]